bitfinex/quotes_ETHUSD_20250923
["timestamp","ask_amount","ask_price","bid_price","bid_amount"]
[1758634810399,0.001,4208.2,4208.1,22.52816938]
[1758634813300,0.001,4209.1,4209.0,2.37586124]
[1758634813501,0.001,4209.1,4209.0,7.32886124]
[1758634813839,0.0002,4209.1,4209.0,8.11756124]
[1758634814049,0.0002,4209.1,4209.0,22.61756124]
[1758634814212,0.1184,4211.0,4209.0,22.61756124]
[1758634814213,0.2259,4211.1,4209.4,0.792]
[1758634814432,0.2259,4211.7,4210.8,2.37484563]
[1758634814629,0.2259,4211.3,4210.8,2.37484563]
[1758634814841,0.2259,4211.3,4210.8,16.87484563]
[1758634815447,0.7203,4210.9,4210.8,14.5]
[1758634815830,6.1631376,4210.9,4210.8,14.5]
[1758634816014,3.0,4210.8,4210.0,2.37525291]
[1758634816218,3.0,4210.8,4209.4,4.162]
[1758634816219,32.3200672,4210.6,4209.4,4.162]
[1758634816460,3.7003,4210.5,4208.7,2.3760306]
[1758634816623,3.0,4210.3,4208.8,4.165]
[1758634816818,1.94319976,4210.2,4209.5,2.37557655]
[1758634817051,1.94319976,4210.2,4210.1,14.5]
[1758634817564,3.0,4210.5,4210.2,2.37513745]
[1758634817779,3.0,4210.5,4210.1,14.5]
[1758634818079,0.7003,4210.4,4210.1,14.5]
[1758634818350,4.83767267,4210.9,4210.1,14.5]
[1758634818351,0.2259,4210.3,4210.2,0.02375184]
[1758634818552,0.7003,4210.3,4210.1,14.5]
[1758634818728,0.7003,4210.2,4210.1,14.5]
[1758634819251,0.83291428,4210.2,4210.1,14.5]
[1758634819439,3.7003,4210.2,4210.1,14.5]
[1758634819756,6.20813363,4210.2,4210.1,14.5]
[1758634820052,36.15319577,4210.2,4210.1,14.5]
[1758634820252,38.59603337,4210.2,4210.1,14.5]
[1758634820451,42.4418493,4210.2,4210.1,14.5]
[1758634820821,44.81703337,4210.2,4210.1,14.5]
[1758634821267,45.03839177,4210.2,4210.1,14.5]
[1758634821638,2.3754085,4209.9,4208.8,2.37595806]
[1758634821868,3.98343578,4209.8,4209.1,2.37579825]
[1758634822053,4.52354956,4209.7,4208.7,4.165]
[1758634822225,0.13264956,4209.6,4209.2,16.87574366]
[1758634822426,0.13264956,4209.6,4209.2,14.5]
[1758634822743,3.0,4210.7,4209.4,2.37563548]
[1758634823069,9.24314937,4210.6,4210.0,2.37526444]
[1758634823268,0.35441177,4210.5,4210.1,16.87523724]
[1758634823491,0.35880441,4210.4,4210.1,16.87522604]
[1758634823628,3.13290441,4210.3,4210.1,14.5]
[1758634823835,0.35880441,4210.2,4210.1,14.5]
[1758634824061,0.35880441,4210.2,4210.1,16.87524049]
[1758634824062,0.13290441,4210.2,4210.1,16.87524049]
[1758634824581,34.50805699,4210.2,4210.1,14.5]
[1758634824734,34.72968983,4210.2,4210.1,14.5]
[1758634824938,37.1048739,4210.2,4210.1,14.5]
[1758634825767,37.1048739,4210.2,4209.4,0.1184]
[1758634825768,3.1184,4210.1,4209.4,0.1184]
[1758634825976,3.1184,4209.9,4209.4,0.1184]
[1758634826147,0.13290441,4209.8,4209.5,14.5]
[1758634826340,0.13290441,4209.7,4209.5,14.5]
[1758634826672,4.99420441,4209.6,4209.5,14.5]
[1758634826871,4.51980441,4209.6,4209.5,14.5]
[1758634827172,4.99420441,4209.6,4209.5,14.5]
[1758634827372,4.51980441,4209.6,4209.5,14.5]
[1758634827553,5.28362485,4209.6,4209.5,14.5]
[1758634827759,5.75802485,4209.6,4209.5,14.5]
[1758634828070,35.70308699,4209.6,4209.5,14.5]
[1758634828270,3.1184,4209.5,4208.3,4.159]
[1758634828474,0.13290441,4209.4,4208.4,0.6703]
[1758634828772,0.13290441,4209.3,4209.1,2.37578941]
[1758634828977,4.29290441,4209.2,4209.1,2.37578941]
[1758634829138,0.13290441,4209.2,4209.1,3.04608941]
[1758634829337,4.161,4209.5,4209.1,0.7887]
[1758634829577,0.13302696,4209.4,4209.1,0.1184]
[1758634829870,0.35893508,4209.3,4209.2,14.5]
[1758634830079,0.83333508,4209.3,4209.2,14.5]
[1758634830273,0.83333508,4209.3,4208.4,0.1184]
[1758634830274,5.37574836,4209.2,4208.4,0.1184]
[1758634830573,0.1184,4208.9,4208.4,0.1184]
[1758634830785,0.1184,4208.9,4208.1,0.02]
[1758634830786,3.0,4208.7,4208.5,14.5]
[1758634830939,33.15440125,4208.8,4208.1,0.02]
[1758634830940,3.1184,4208.5,4208.1,0.02]
[1758634831143,0.1184,4208.2,4208.1,0.02]
[1758634831463,4.41443508,4208.2,4208.1,14.52]
[1758634831659,38.05979722,4208.2,4208.1,14.52]
[1758634831860,40.53948822,4208.2,4208.1,14.52]
[1758634832045,10.18655077,4208.2,4208.1,0.02]
[1758634832249,0.13303508,4208.2,4208.1,2.39636938]
[1758634832467,2.055,4208.7,4208.3,2.37623114]
[1758634832676,3.0,4208.5,4208.3,2.37623114]
[1758634832979,3.0,4208.5,4208.1,14.52]
[1758634832980,5.37625644,4208.3,4208.1,14.52]
[1758634833140,6.1410196,4208.2,4208.1,14.52]
[1758634833476,5.6666196,4208.2,4208.1,14.52]
[1758634833779,8.51733251,4208.2,4208.1,14.52]
[1758634834070,8.51733251,4208.2,4207.1,0.02]
[1758634834071,2.37658943,4207.8,4207.1,0.02]
[1758634834276,3.0,4207.5,4207.1,0.02]
[1758634834483,3.0,4207.5,4205.8,0.004]
[1758634834484,2.37693604,4207.1,4206.4,14.5]
[1758634834686,4.52067149,4207.0,4206.4,14.5]
[1758634834838,5.18903508,4206.9,4206.4,14.5]
[1758634835036,4.30103508,4206.8,4206.7,2.37716024]
[1758634835273,4.168,4206.8,4206.7,2.37716024]
[1758634835573,4.168,4206.8,4206.5,2.37724981]
[1758634835736,4.168,4206.8,4206.4,14.5]
[1758634835934,4.168,4206.8,4206.7,2.37716024]
[1758634836173,4.168,4206.8,4206.4,14.5]
[1758634836375,0.7003,4206.7,4206.4,14.5]
[1758634836685,0.7003,4206.7,4206.5,2.37725326]
[1758634836993,0.7003,4206.7,4206.4,14.5]
[1758634837142,0.7003,4206.7,4206.4,16.87730553]
[1758634837342,0.7003,4206.7,4206.4,14.5]
[1758634837541,0.7003,4206.7,4206.2,0.004]
[1758634837542,4.31997328,4206.7,4206.2,0.004]
[1758634837782,2.3773863,4206.3,4206.2,0.004]
[1758634837947,9.57628425,4206.3,4206.2,0.004]
[1758634838265,10.27658425,4206.3,4206.2,0.004]
[1758634838476,12.65397055,4206.3,4206.2,0.004]
[1758634838677,14.87456718,4206.3,4206.2,0.004]
[1758634838884,12.49718088,4206.3,4206.2,0.004]
[1758634839053,12.49698088,4206.3,4206.2,0.004]
[1758634839379,14.87436718,4206.3,4206.2,0.004]
[1758634839766,12.49698088,4206.3,4206.2,0.004]
[1758634839979,14.87436718,4206.3,4206.2,0.004]
[1758634840873,12.49698088,4206.3,4206.2,0.004]
[1758634841193,14.87436718,4206.3,4206.2,0.004]
[1758634841543,12.49698088,4206.3,4206.2,0.004]
[1758634841739,14.87436718,4206.3,4206.2,0.004]
[1758634841939,12.49698088,4206.3,4206.2,0.004]
[1758634842179,14.87436718,4206.3,4206.2,0.004]
[1758634842496,3.13284328,4206.3,4206.2,0.004]
[1758634842644,7.16,4206.3,4206.2,0.004]
[1758634843183,7.161,4206.3,4206.2,14.504]
[1758634843543,10.2418863,4206.3,4206.2,0.004]
[1758634843766,12.6847239,4206.3,4206.2,0.004]
[1758634844176,12.6847239,4206.3,4204.8,14.5]
[1758634844177,0.792,4205.9,4204.8,14.5]
[1758634844355,5.37795235,4205.3,4204.8,14.5]
[1758634844585,11.60000818,4205.2,4204.8,14.5]
[1758634844910,12.30350818,4205.2,4204.8,14.5]
[1758634845081,5.49650406,4205.1,4204.2,2.37857234]
[1758634845281,0.1184,4204.8,4204.1,0.02]
[1758634845489,0.1184,4204.5,4204.3,14.5]
[1758634845679,4.164,4204.4,4204.3,14.5]
[1758634846406,0.1184,4204.5,4204.4,2.37846066]
[1758634846598,4.164,4204.4,4204.3,17.12691723]
[1758634847099,4.164,4204.4,4204.3,17.56541723]
[1758634847614,4.164,4204.4,4204.3,16.87851723]
[1758634847816,4.164,4204.4,4204.3,14.5]
[1758634848015,4.3951,4204.4,4204.3,14.5]
[1758634848578,7.8675,4204.4,4204.3,14.5]
[1758634848799,8.87179,4204.4,4204.3,14.5]
[1758634848992,3.0,4204.3,4204.1,0.02]
[1758634849187,7.16,4204.2,4204.1,0.02]
[1758634849479,7.8635,4204.2,4204.1,14.52]
[1758634850324,7.8635,4204.2,4203.1,0.02]
[1758634850325,3.792,4204.1,4203.1,0.02]
[1758634850618,3.0,4203.6,4203.2,14.5]
[1758634850803,6.217,4203.5,4203.2,14.5]
[1758634851126,0.2311,4203.4,4203.2,14.5]
[1758634851274,7.159,4203.3,4203.2,14.5]
[1758634851482,3.0,4203.2,4203.1,0.02]
[1758634852111,4.88610708,4203.2,4203.1,0.02]
[1758634852313,8.05724678,4203.2,4203.1,0.02]
[1758634852522,8.05724678,4203.2,4202.1,0.02]
[1758634852523,5.67810708,4203.2,4202.1,0.02]
[1758634852676,3.0,4202.2,4202.1,0.02]
[1758634852882,11.59570586,4202.2,4202.1,0.02]
[1758634853089,15.53404346,4202.2,4202.1,0.02]
[1758634853610,3.17187577,4201.9,4201.8,0.004]
[1758634853808,4.952,4201.9,4201.8,0.004]
[1758634854010,8.6555,4201.9,4201.8,0.004]
[1758634854378,11.03537577,4201.9,4201.8,0.004]
[1758634854619,5.49499879,4201.9,4201.8,0.004]
[1758634854922,7.16,4201.9,4201.8,0.004]
[1758634855121,9.9215,4201.9,4201.8,0.004]
[1758634855422,12.30137577,4201.9,4201.8,0.004]
[1758634855626,12.30137577,4201.9,4201.1,0.024]
[1758634855627,3.792,4201.8,4201.1,0.024]
[1758634855779,27.12102269,4201.2,4201.1,0.024]
[1758634855985,31.90475039,4201.2,4201.1,0.024]
[1758634856596,3.0,4201.2,4201.1,0.024]
[1758634856798,3.0,4201.2,4201.1,2.40432896]
[1758634856999,9.221,4201.2,4201.1,0.024]
[1758634857512,3.0,4201.2,4201.1,2.40432896]
[1758634857683,9.222,4201.2,4201.1,3.09122896]
[1758634858421,7.164,4201.2,4201.1,3.09122896]
[1758634858623,7.164,4201.2,4201.1,0.024]
[1758634858823,7.164,4201.2,4201.1,2.40432896]
[1758634860226,9.3414,4201.2,4201.1,2.40432896]
[1758634860528,0.1184,4201.2,4201.1,2.40432896]
[1758634860717,4.162,4201.2,4201.1,3.20962896]
[1758634861021,4.162,4201.2,4201.1,0.024]
[1758634861227,4.162,4201.2,4201.1,2.40432896]
[1758634861612,4.162,4201.2,4201.1,2.65272896]
[1758634861813,4.162,4201.2,4201.1,3.09122896]
[1758634862218,4.162,4201.2,4201.1,2.40432896]
[1758634862522,4.162,4201.2,4201.1,0.024]
[1758634862726,8.0152,4201.2,4201.1,0.024]
[1758634862922,8.0152,4201.2,4201.1,2.40432896]
[1758634862923,7.7841,4201.2,4201.1,2.40432896]
[1758634863109,7.162,4201.2,4201.1,2.40432896]
[1758634863313,3.0,4201.2,4201.1,2.65272896]
[1758634863514,7.1652,4201.2,4201.1,3.09122896]
[1758634863836,0.1184,4201.6,4201.5,2.38010234]
[1758634864340,2.059,4202.1,4202.0,2.37981913]
[1758634864639,2.059,4202.5,4202.4,2.3795512]
[1758634864835,6.9305,4202.5,4201.9,2.37983616]
[1758634865008,0.1184,4202.2,4201.5,0.1184]
[1758634865209,4.169,4202.1,4202.0,2.37981913]
[1758634865430,0.1184,4202.2,4202.1,2.37976249]
[1758634865618,0.1184,4202.7,4202.6,2.37947517]
[1758634865928,9.3454,4202.7,4202.6,2.37947517]
[1758634866137,3.0,4202.6,4202.0,0.1184]
[1758634866537,9.227,4202.5,4202.4,2.37955346]
[1758634866741,3.0,4202.4,4202.0,0.1184]
[1758634866924,0.1184,4202.0,4201.4,2.38013652]
[1758634867135,3.1184,4201.8,4201.1,0.1424]
[1758634867316,0.1184,4201.8,4201.7,2.37998905]
[1758634867515,7.169,4201.8,4201.7,2.37998905]
[1758634867722,0.1184,4202.0,4201.9,2.37987577]
[1758634867932,0.1184,4202.5,4201.9,2.37987577]
[1758634868133,2.059,4202.4,4201.7,0.1184]
[1758634868441,3.58400426,4202.3,4201.2,0.4385]
[1758634868620,0.1184,4201.8,4201.6,2.37999567]
[1758634868822,4.168,4201.7,4201.6,2.37999567]
[1758634869012,4.168,4201.7,4201.5,2.3800841]
[1758634869207,4.168,4201.7,4201.1,0.1424]
[1758634869538,4.168,4201.7,4201.6,2.38004569]
[1758634869733,3.0,4201.6,4201.1,0.024]
[1758634870054,3.0,4201.4,4201.1,0.024]
[1758634870350,0.35311558,4201.3,4201.1,0.024]
[1758634870535,5.73338788,4201.2,4201.1,0.024]
[1758634871106,7.21308788,4201.2,4201.1,0.024]
[1758634871343,6.42644191,4201.2,4201.1,0.024]
[1758634871648,8.80671421,4201.2,4201.1,0.024]
[1758634872012,6.42644191,4201.2,4201.1,0.024]
[1758634872212,5.63444191,4201.2,4201.1,0.024]
[1758634872409,9.80781558,4201.2,4201.1,0.024]
[1758634872929,9.80581558,4201.2,4201.1,0.024]
[1758634873132,12.63948788,4201.2,4201.1,0.024]
[1758634874049,10.25921558,4201.2,4201.1,0.024]
[1758634874422,12.63948788,4201.2,4201.1,0.024]
[1758634874624,11.77287645,4201.2,4201.1,0.024]
[1758634874936,14.15314875,4201.2,4201.1,0.024]
[1758634875469,2.38055562,4200.7,4200.6,0.004]
[1758634875621,2.38078232,4200.3,4200.2,0.004]
[1758634875823,13.53288504,4200.3,4200.2,0.004]
[1758634876147,13.53288504,4200.3,4199.1,0.02]
[1758634876148,6.172839,4200.2,4199.1,0.02]
[1758634876459,2.38105409,4199.9,4199.1,2.40144171]
[1758634876670,3.0,4199.7,4199.1,0.02]
[1758634876967,0.1184,4199.2,4199.1,2.40146269]
[1758634877143,6.69051558,4199.2,4199.1,2.40146269]
[1758634877347,6.69102364,4199.2,4199.1,2.40146269]
[1758634877554,6.69102364,4199.2,4199.1,3.09226269]
[1758634877867,0.35362364,4199.2,4199.1,3.09226269]
[1758634878166,4.2919238,4199.2,4199.1,3.09226269]
[1758634878956,4.2919238,4199.2,4199.1,2.64036269]
[1758634879167,4.51353289,4199.2,4199.1,2.40146269]
[1758634879965,4.51353289,4199.2,4199.1,2.64036269]
[1758634880966,0.35453289,4199.2,4199.1,3.09226269]
[1758634881171,4.51353289,4199.2,4199.1,3.09226269]
[1758634881464,4.51353289,4199.2,4199.1,3.09626269]
[1758634881465,4.51376649,4199.2,4199.1,3.09626269]
[1758634882068,5.02021845,4199.2,4199.1,0.024]
[1758634882269,11.09082443,4199.2,4199.1,0.024]
[1758634882459,11.88282443,4199.2,4199.1,0.024]
[1758634883395,9.50141845,4199.2,4199.1,0.024]
[1758634883604,11.88282443,4199.2,4199.1,0.024]
[1758634883955,11.8827239,4199.2,4199.1,0.024]
[1758634884397,0.792,4198.7,4198.6,0.004]
[1758634884554,4.51368585,4198.7,4198.6,0.004]
[1758634885055,5.95425444,4198.7,4198.6,0.004]
[1758634885284,8.33594401,4198.7,4198.6,0.004]
[1758634885484,5.26505444,4198.7,4198.6,0.004]
[1758634885702,5.50085444,4198.7,4198.6,0.004]
[1758634886054,12.12794401,4198.7,4198.6,0.004]
[1758634886259,6.17391649,4198.3,4198.2,0.004]
[1758634886454,5.38197322,4198.2,4198.1,0.02]
[1758634886658,3.0,4197.6,4197.1,0.02]
[1758634886901,3.0,4197.4,4197.1,0.02]
[1758634887103,6.57368585,4197.5,4197.1,0.02]
[1758634887104,3.0,4197.2,4197.1,0.02]
[1758634887399,0.35468585,4197.2,4197.1,0.02]
[1758634887556,0.35468585,4197.2,4197.1,3.0933975]
[1758634887756,6.219,4197.2,4197.1,3.0933975]
[1758634887958,6.57272318,4197.2,4197.1,0.02]
[1758634888293,6.35164884,4197.2,4197.1,3.0933975]
[1758634888456,6.35084884,4197.2,4197.1,2.4025975]
[1758634888895,6.35084884,4197.2,4197.1,2.6414975]
[1758634889119,0.13257283,4197.2,4197.1,2.6414975]
[1758634889389,4.158,4197.2,4197.1,0.7108]
[1758634889559,6.218,4197.2,4197.1,2.4025975]
[1758634889962,0.1184,4197.4,4197.3,2.38248397]
[1758634890158,9.3374,4197.4,4197.3,2.38248397]
[1758634890378,6.217,4197.4,4197.3,3.19168397]
[1758634891090,6.217,4197.4,4197.3,2.38248397]
[1758634891671,0.1184,4197.7,4197.6,2.3823137]
[1758634891867,6.3354,4197.7,4197.6,2.3823137]
[1758634892095,3.0,4197.6,4197.1,0.02]
[1758634892301,0.1184,4197.4,4197.1,0.02]
[1758634892460,4.156,4197.5,4197.1,0.02]
[1758634892461,0.1184,4197.2,4197.1,0.02]
[1758634892862,0.8076,4197.2,4197.1,0.02]
[1758634894077,0.3542,4197.2,4197.1,0.02]
[1758634894400,0.56932,4197.2,4197.1,2.4025975]
[1758634894564,4.39093224,4197.2,4197.1,0.02]
[1758634894766,4.61159046,4197.2,4197.1,0.02]
[1758634894961,3.92239046,4197.2,4197.1,0.02]
[1758634895586,4.40281224,4197.2,4197.1,0.02]
[1758634895794,9.46381224,4197.2,4197.1,2.4025975]
[1758634895964,4.28441224,4197.2,4197.1,2.4025975]
[1758634896169,6.213,4197.2,4197.1,2.4025975]
[1758634896499,6.212,4197.2,4197.1,0.02]
[1758634896712,10.66672988,4197.2,4197.1,0.02]
[1758634896912,10.88753247,4197.2,4197.1,0.02]
[1758634897120,10.19833247,4197.2,4197.1,0.02]
[1758634897505,11.67953247,4197.2,4197.1,0.02]
[1758634897710,11.67958457,4197.2,4197.1,0.02]
[1758634898203,11.22618457,4197.2,4197.1,0.02]
[1758634898579,10.19838457,4197.2,4197.1,0.02]
[1758634899282,10.19847002,4197.2,4197.1,0.02]
[1758634899476,10.88767002,4197.2,4197.1,0.02]
[1758634899716,10.43427002,4197.2,4197.1,0.02]
[1758634899927,10.19847002,4197.2,4197.1,0.02]
[1758634900289,8.13647002,4197.2,4197.1,2.4025975]
[1758634900493,9.68283002,4197.2,4197.1,2.4025975]
[1758634900882,6.68283002,4197.2,4197.1,2.8544975]
[1758634901085,12.06537076,4197.2,4197.1,0.02]
[1758634901284,10.39153002,4197.2,4197.1,0.02]
[1758634901596,9.68283002,4197.2,4197.1,0.02]
[1758634901795,14.94409597,4197.2,4197.1,0.02]
[1758634901996,15.41719597,4197.2,4197.1,0.02]
[1758634903986,15.41719597,4197.2,4197.1,0.024]
[1758634905000,13.35719597,4197.2,4197.1,0.024]
[1758634905194,21.86119597,4197.2,4197.1,0.024]
[1758634908723,17.85955523,4197.2,4197.1,0.024]
[1758634908927,20.24209597,4197.2,4197.1,0.024]
[1758634909099,7.50483367,4197.2,4197.1,0.024]
[1758634909423,3.35383367,4197.2,4197.1,0.024]
[1758634909720,15.29483367,4197.2,4197.1,0.024]
[1758634910324,3.35383367,4197.2,4197.1,3.1058975]
[1758634910507,15.29483367,4197.2,4197.1,0.7233]
[1758634910711,15.29483367,4197.2,4197.1,0.024]
[1758634910921,16.82431704,4197.2,4197.1,0.024]
[1758634911129,15.29483367,4197.2,4197.1,0.024]
[1758634912734,16.08683367,4197.2,4197.1,0.024]
[1758634912935,19.17807441,4197.2,4197.1,0.024]
[1758634913526,19.17843442,4197.2,4197.1,0.024]
[1758634915509,18.70533442,4197.2,4197.1,0.024]
[1758634915704,21.11262458,4197.2,4197.1,0.024]
[1758634916027,9.17162458,4197.2,4197.1,0.024]
[1758634916346,12.16341835,4197.2,4197.1,0.024]
[1758634916536,17.54595909,4197.2,4197.1,0.024]
[1758634916853,3.22241835,4197.2,4197.1,0.024]
[1758634917142,15.16341835,4197.2,4197.1,0.273]
[1758634917344,17.54595909,4197.2,4197.1,0.024]
[1758634917547,19.5361434,4197.2,4197.1,0.024]
[1758634918045,16.91800266,4197.2,4197.1,0.024]
[1758634918209,19.3005434,4197.2,4197.1,0.024]
[1758634918406,16.91800266,4197.2,4197.1,0.024]
[1758634918729,3.22241835,4197.2,4197.1,0.024]
[1758634918928,15.16341835,4197.2,4197.1,0.024]
[1758634919140,17.54595909,4197.2,4197.1,0.024]
[1758634919510,15.16341835,4197.2,4197.1,0.024]
[1758634920568,17.54595909,4197.2,4197.1,0.024]
[1758634920933,11.01241835,4197.2,4197.1,0.024]
[1758634921264,15.16271003,4197.2,4197.1,0.7233]
[1758634921563,15.16271003,4197.2,4197.1,3.1058975]
[1758634921564,2.28471003,4197.2,4197.1,3.1058975]
[1758634921766,6.43471003,4197.2,4197.1,3.1058975]
[1758634922139,6.43471003,4197.2,4197.1,17.6058975]
[1758634922344,6.212,4197.2,4197.1,17.6058975]
[1758634922765,2.062,4197.2,4197.1,17.7242975]
[1758634922944,6.212,4197.2,4197.1,17.7242975]
[1758634923934,6.212,4197.2,4197.1,15.3417]
[1758634924143,6.212,4197.2,4197.1,17.6058975]
[1758634924477,0.1184,4197.8,4197.1,15.3417]
[1758634924636,3.1184,4197.8,4197.7,2.38225695]
[1758634924831,9.55320306,4197.8,4197.7,3.08155695]
[1758634925065,9.55322725,4197.8,4197.4,0.249]
[1758634925377,9.55322725,4197.8,4197.1,14.6424]
[1758634925378,0.22282725,4197.7,4197.1,14.6424]
[1758634925681,3.0,4197.5,4197.4,2.38242721]
[1758634925890,7.50647846,4197.5,4197.4,2.38242721]
[1758634926079,8.47516631,4197.5,4197.1,14.524]
[1758634926237,0.35647846,4197.4,4197.1,14.524]
[1758634926442,0.13365121,4197.3,4197.2,3.08184074]
[1758634926661,6.34465121,4197.3,4197.2,3.08184074]
[1758634926865,6.34465121,4197.3,4197.2,3.20024074]
[1758634927599,6.34465121,4197.3,4197.1,14.524]
[1758634927761,0.13365121,4197.2,4197.1,16.9065975]
[1758634927958,0.13465121,4197.2,4197.1,16.9065975]
[1758634928169,4.28365121,4197.2,4197.1,17.0249975]
[1758634928394,6.34465121,4197.2,4197.1,17.0249975]
[1758634928560,6.34465121,4197.2,4197.1,17.7242975]
[1758634930074,6.211,4197.2,4197.1,17.7242975]
[1758634930604,0.001,4197.2,4197.1,17.7242975]
[1758634930955,2.705,4197.2,4197.1,17.7242975]
[1758634932319,4.15,4197.2,4197.1,17.7242975]
[1758634932524,0.001,4197.2,4197.1,17.7242975]
[1758634932690,0.001,4197.7,4197.6,2.3823137]
[1758634932882,0.001,4197.7,4197.6,2.5007137]
[1758634932883,4.533,4197.7,4197.6,2.5007137]
[1758634933078,4.533,4197.7,4197.6,3.1999137]
[1758634934826,0.001,4197.7,4197.6,3.1999137]
[1758634935037,6.211,4197.7,4197.6,3.1999137]
[1758634935337,6.211,4197.7,4197.6,2.7288137]
[1758634935492,6.211,4197.7,4197.6,2.5007137]
[1758634935831,6.211,4197.7,4197.6,2.3823137]
[1758634936226,0.001,4197.7,4197.6,2.3823137]
[1758634936435,6.21,4197.7,4197.6,2.7288137]
[1758634936739,6.21,4197.7,4197.6,2.5007137]
[1758634938502,6.9035,4197.7,4197.6,0.1184]
[1758634938706,7.03681801,4197.7,4197.4,2.38242639]
[1758634938935,0.13331801,4197.6,4197.5,2.38233932]
[1758634939737,0.13331801,4197.6,4197.3,0.1184]
[1758634940045,4.148,4197.5,4197.4,2.3824172]
[1758634941650,4.148,4197.5,4197.3,0.1184]
[1758634941817,4.148,4197.5,4197.3,2.5008784]
[1758634942002,4.3768,4197.5,4197.3,2.5008784]
[1758634942231,4.3768,4197.5,4197.4,2.38242721]
[1758634942428,4.51011647,4197.5,4197.3,2.50087103]
[1758634942668,4.51011647,4197.5,4197.3,0.1184]
[1758634942669,0.36211556,4197.4,4197.3,0.1184]
[1758634942861,0.36211556,4197.4,4197.3,2.50088397]
[1758634943256,0.36211556,4197.4,4197.1,14.524]
[1758634943257,0.82761556,4197.4,4197.1,14.524]
[1758634943463,4.97461556,4197.3,4197.1,14.524]
[1758634943667,0.36211556,4197.2,4197.1,14.524]
[1758634944278,0.13331556,4197.2,4197.1,14.524]
[1758634944443,6.34131556,4197.2,4197.1,17.6057975]
[1758634944648,6.34131556,4197.2,4197.1,16.9065975]
[1758634946336,6.34131556,4197.2,4197.1,17.1346975]
[1758634946536,6.34131556,4197.2,4197.1,2.6346975]
[1758634946861,6.34131556,4197.2,4197.1,2.4065975]
[1758634947178,4.28031556,4197.2,4197.1,16.9065975]
[1758634947366,6.34131556,4197.2,4197.1,16.9065975]
[1758634949677,6.34131556,4197.2,4197.1,14.524]
[1758634949885,6.57011556,4197.2,4197.1,16.9065975]
[1758634950053,6.57011556,4197.2,4197.1,14.524]
[1758634950381,6.57011556,4197.2,4197.1,16.9065975]
[1758634950683,6.34131556,4197.2,4197.1,16.9065975]
[1758634951583,6.34031556,4197.2,4197.1,16.9065975]
[1758634953887,0.13331556,4197.2,4197.1,16.9065975]
[1758634954190,4.27931556,4197.2,4197.1,17.1346975]
[1758634954491,4.27931556,4197.2,4197.1,17.7241975]
[1758634954895,0.13331556,4197.2,4197.1,17.7241975]
[1758634955043,1.32331556,4197.2,4197.1,17.7241975]
[1758634955249,1.32331556,4197.2,4197.1,17.0249975]
[1758634955955,4.27931556,4197.2,4197.1,17.0249975]
[1758634956163,4.27967172,4197.2,4197.1,17.0249975]
[1758634956352,4.27967172,4197.2,4197.1,16.9065975]
[1758634956546,8.67115676,4197.2,4197.1,14.524]
[1758634957492,8.19663959,4197.2,4197.1,14.524]
[1758634958814,8.19663959,4197.2,4197.1,16.9065975]
[1758634959014,8.19663959,4197.2,4197.1,14.524]
[1758634959685,10.57918033,4197.2,4197.1,14.524]
[1758634959885,8.19663959,4197.2,4197.1,0.024]
[1758634960123,9.01630355,4197.2,4197.1,0.024]
[1758634960326,15.88000355,4197.2,4197.1,14.524]
[1758634960534,15.88000355,4197.2,4197.1,16.9065975]
[1758634960535,15.06033959,4197.2,4197.1,16.9065975]
[1758634960701,3.35633959,4197.2,4197.1,16.9065975]
[1758634961084,7.50133959,4197.2,4197.1,16.9065975]
[1758634961427,7.50133959,4197.2,4197.1,14.524]
[1758634961627,8.18273959,4197.2,4197.1,14.524]
[1758634961983,7.50133959,4197.2,4197.1,16.9065975]
[1758634962895,7.50133959,4197.2,4197.1,14.524]
[1758634963412,3.35553959,4197.2,4197.1,14.524]
[1758634963595,3.58813959,4197.2,4197.1,14.524]
[1758634964135,5.15165355,4197.2,4197.1,0.024]
[1758634964335,8.32619429,4197.2,4197.1,0.024]
[1758634964895,5.94365355,4197.2,4196.6,0.004]
[1758634965150,31.01079324,4196.7,4196.6,0.004]
[1758634965305,3.17505173,4196.3,4196.2,0.004]
[1758634965501,6.3977196,4196.3,4196.2,0.004]
[1758634965721,7.0791196,4196.3,4196.2,0.004]
[1758634965916,2.38367658,4195.2,4195.1,0.02]
[1758634966136,14.07522081,4195.2,4195.1,0.02]
[1758634966408,16.40250259,4195.2,4195.1,0.02]
[1758634968701,16.40250259,4195.2,4193.3,0.1192]
[1758634968702,2.38387959,4194.9,4193.1,0.02]
[1758634968900,14.01882601,4195.2,4192.1,0.02]
[1758634968901,5.38458603,4193.6,4192.1,0.02]
[1758634969135,3.792,4192.3,4192.1,0.02]
[1758634969350,8.57566787,4192.2,4192.1,0.02]
[1758634969642,7.561,4192.2,4192.1,2.86903927]
[1758634969801,7.561,4192.2,4192.1,3.18114255]
[1758634970210,7.561,4192.2,4192.1,17.91744255]
[1758634971009,7.561,4192.2,4192.1,17.60533927]
[1758634971212,7.561,4192.2,4192.1,14.52]
[1758634971411,7.561,4192.2,4192.1,16.90543927]
[1758634972043,7.561,4192.2,4192.1,17.60533927]
[1758634972440,7.561,4192.2,4192.1,14.52]
[1758634972748,7.561,4192.2,4192.1,0.02]
[1758634972749,12.81376,4192.2,4192.1,0.02]
[1758634973311,10.7936,4192.2,4192.1,0.02]
[1758634973653,8.728,4192.2,4192.1,0.02]
[1758634973840,5.728,4192.2,4192.1,2.40543927]
[1758634974042,5.728,4192.2,4192.1,0.02]
[1758634974570,5.728,4192.2,4192.1,2.40543927]